fUST/lending_fUST_20240921
["ID","MTS","AMOUNT","RATE_DAILY","PERIOD"]
[338654216,1726849856749,-500.0,0.00017059,2]
[338654217,1726849856758,-500.0,0.0001706,2]
[338654218,1726849856768,-500.0,0.0001706,2]
[338654219,1726849856777,-2013.89,0.00017061,2]
[338654220,1726849856786,-280.47290367,0.00017061,2]
[338654221,1726849856795,-500.0,0.00017061,2]
[338654222,1726849856805,-500.0,0.00017061,2]
[338654223,1726849856815,-500.0,0.00017061,2]
[338654224,1726849856825,-500.0,0.00017061,2]
[338654225,1726849856835,-151.0,0.00017061,2]
[338654226,1726849856846,-151.0,0.00017061,2]
[338654227,1726849856857,-669.37,0.00017061,2]
[338654228,1726849856866,-711.78,0.00017061,2]
[338654229,1726849856875,-500.0,0.00017061,2]
[338654230,1726849856885,-446.733164,0.00017061,2]
[338654231,1726849856895,-500.0,0.00017061,2]
[338654232,1726849856904,-446.733164,0.00017061,2]
[338654233,1726849857037,-1048.35,0.00017061,2]
[338654234,1726849857048,-500.0,0.00017061,2]
[338654235,1726849857058,-707.82,0.00017061,2]
[338654236,1726849857066,-713.32,0.00017061,2]
[338654237,1726849857076,-512.42,0.00017061,2]
[338654238,1726849857086,-1533.92,0.00017061,2]
[338654239,1726849857095,-835.97,0.00017061,2]
[338654240,1726849857105,-719.41,0.00017061,2]
[338654241,1726849857118,-592.83,0.00017061,2]
[338654242,1726849857128,-500.0,0.00017061,2]
[338654243,1726849857139,-500.0,0.00017061,2]
[338654244,1726849857148,-526.55,0.00017061,2]
[338654245,1726849857159,-500.0,0.00017061,2]
[338654246,1726849857169,-500.0,0.00017061,2]
[338654247,1726849857178,-500.0,0.00017061,2]
[338654248,1726849857187,-500.0,0.00017061,2]
[338654249,1726849857197,-500.0,0.00017061,2]
[338654250,1726849857206,-500.0,0.00017061,2]
[338654251,1726849857215,-161.48793647,0.00017061,2]
[338654252,1726849857225,-500.0,0.00017061,2]
[338654253,1726849857235,-500.0,0.00017061,2]
[338654254,1726849857244,-500.0,0.00017061,2]
[338654255,1726849857254,-223.13053213,0.0001707,2]
[338654256,1726849857263,-500.0,0.0001707,2]
[338654257,1726849857272,-599.25,0.00017071,2]
[338654258,1726849857282,-921.45,0.00017071,2]
[338654259,1726849857291,-511.27,0.00017071,2]
[338654260,1726849857300,-500.0,0.00017071,2]
[338654261,1726849857309,-500.0,0.00017071,2]
[338654262,1726849857318,-730.95,0.00017071,2]
[338654263,1726849857328,-200.0,0.00017071,2]
[338654264,1726849857338,-528.81,0.00017071,2]
[338654265,1726849857347,-500.0,0.00017071,2]
[338654266,1726849857357,-500.0,0.00017071,2]
[338654267,1726849857367,-626.82,0.00017071,2]
[338654268,1726849857376,-500.0,0.00017071,2]
[338654269,1726849857386,-500.0,0.00017071,2]
[338654270,1726849857398,-500.0,0.00017071,2]
[338654271,1726849857407,-1000.17,0.00017071,2]
[338654272,1726849857417,-616.53,0.00017071,2]
[338654273,1726849857426,-544.65,0.00017071,2]
[338654274,1726849857435,-500.0,0.00017071,2]
[338654275,1726849857445,-500.0,0.00017071,2]
[338654276,1726849857454,-500.0,0.00017071,2]
[338654277,1726849857463,-500.0,0.00017071,2]
[338654278,1726849857472,-746.45,0.00017071,2]
[338654279,1726849857481,-500.0,0.00017071,2]
[338654280,1726849857491,-500.0,0.00017071,2]
[338654281,1726849857500,-500.0,0.00017071,2]
[338654282,1726849857509,-510.27,0.00017071,2]
[338654283,1726849857519,-500.0,0.00017071,2]
[338654284,1726849857528,-500.0,0.00017071,2]
[338654285,1726849857536,-500.0,0.00017071,2]
[338654286,1726849857546,-500.0,0.00017071,2]
[338654287,1726849857554,-500.0,0.00017071,2]
[338654288,1726849857565,-500.0,0.00017071,2]
[338654289,1726849857574,-500.0,0.00017071,2]
[338654290,1726849857583,-500.0,0.00017071,2]
[338654291,1726849857592,-805.83,0.00017071,2]
[338654292,1726849857602,-230.612043,0.00017071,2]
[338654293,1726849857611,-230.612043,0.00017071,2]
[338654294,1726849857620,-500.0,0.00017071,2]
[338654295,1726849857629,-681.44,0.00017071,2]
[338654296,1726849857638,-175.25647326,0.00017071,2]
[338654297,1726849857647,-500.0,0.00017071,2]
[338654298,1726849857657,-799.02,0.00017071,2]
[338654299,1726849857667,-500.0,0.00017071,2]
[338654300,1726849857676,-397.53226942,0.00017071,2]
[338654301,1726849857686,-500.0,0.00017071,2]
[338654302,1726849857695,-594.08,0.00017071,2]
[338654303,1726849857705,-500.0,0.00017071,2]
[338654304,1726849857714,-581.45035068,0.00017071,2]
[338654305,1726849857723,-516.67,0.00017071,2]
[338654306,1726849857733,-500.0,0.00017071,2]
[338654307,1726849857742,-500.0,0.00017071,2]
[338654308,1726849857751,-500.0,0.00017071,2]
[338654309,1726849857760,-500.0,0.00017071,2]
[338654310,1726849857771,-608.01,0.00017071,2]
[338654311,1726849857781,-500.0,0.00017071,2]
[338654312,1726849857790,-510.88,0.00017071,2]
[338654313,1726849857799,-500.0,0.00017071,2]
[338654314,1726849857807,-770.65,0.00017071,2]
[338654315,1726849857816,-761.01,0.00017071,2]
[338654316,1726849857826,-500.0,0.00017071,2]
[338654317,1726849857835,-500.0,0.00017071,2]
[338654318,1726849857845,-577.53,0.00017071,2]
[338654319,1726849857854,-500.0,0.00017071,2]
[338654320,1726849857862,-500.0,0.00017071,2]
[338654321,1726849857872,-151.0,0.00017072,2]
[338654322,1726849857881,-500.0,0.00017072,2]
[338654323,1726849857890,-652.36,0.00017072,2]
[338654324,1726849857899,-373.82216024,0.00017072,2]
[338654325,1726849857908,-859.59,0.00017072,2]
[338654326,1726849857918,-500.0,0.00017072,2]
[338654327,1726849857927,-500.0,0.00017072,2]
[338654328,1726849857936,-166.16,0.00017072,2]
[338654329,1726849857945,-1417.57,0.00017072,2]
[338654330,1726849857954,-461.42776472,0.00017072,2]
[338654331,1726849857964,-531.66243584,0.00017072,2]
[338654332,1726849857973,-500.0,0.00017072,2]
[338654333,1726849857982,-1130.89,0.00017072,2]
[338654334,1726849857992,-500.0,0.00017072,2]
[338654335,1726849858001,-287.28,0.00017072,2]
[338654336,1726849858011,-500.0,0.00017072,2]
[338654337,1726849858020,-600.0,0.000171,2]
[338654338,1726849858029,-600.0,0.000171,2]
[338654339,1726849858038,-600.0,0.000171,2]
[338654340,1726849858047,-500.0,0.00017131,2]
[338654341,1726849858056,-246.59710641,0.00017131,2]
[338654342,1726849858065,-749.69,0.00017131,2]
[338654343,1726849858075,-430.72399219,0.00017131,2]
[338654344,1726849858084,-500.0,0.00017131,2]
[338654345,1726849858093,-823.24,0.00017131,2]
[338654346,1726849858103,-1124.2,0.00017131,2]
[338654347,1726849858112,-2812.8,0.00017131,2]
[338654348,1726849858122,-1154.45,0.00017131,2]
[338654349,1726849858131,-500.0,0.00017131,2]
[338654350,1726849858141,-1119.27,0.00017131,2]
[338654351,1726849858150,-711.33,0.00017131,2]
[338654352,1726849858159,-1143.54,0.00017131,2]
[338654353,1726849858172,-860.87,0.00017131,2]
[338654354,1726849858187,-500.0,0.00017131,2]
[338654355,1726849858197,-500.0,0.00017131,2]
[338654356,1726849858210,-500.0,0.00017131,2]
[338654357,1726849858219,-638.48,0.00017131,2]
[338654358,1726849858229,-500.0,0.00017131,2]
[338654359,1726849858238,-500.0,0.00017131,2]
[338654360,1726849858248,-500.0,0.00017131,2]
[338654361,1726849858257,-633.57,0.00017131,2]
[338654362,1726849858267,-718.59,0.00017131,2]
[338654363,1726849858277,-977.74,0.00017131,2]
[338654364,1726849858286,-500.0,0.00017131,2]
[338654365,1726849858296,-500.0,0.00017131,2]
[338654366,1726849858306,-500.0,0.00017131,2]
[338654367,1726849858315,-330.86102192,0.00017131,2]
[338654368,1726849858325,-244.617938,0.00017131,2]
[338654369,1726849858335,-589.91,0.00017131,2]
[338654370,1726849858344,-500.0,0.00017131,2]
[338654371,1726849858354,-500.0,0.00017131,2]
[338654372,1726849858364,-615.12,0.00017131,2]
[338654373,1726849858373,-500.0,0.00017131,2]
[338654374,1726849858383,-500.0,0.00017131,2]
[338654375,1726849858393,-500.0,0.00017131,2]
[338654376,1726849858405,-673.52,0.00017131,2]
[338654377,1726849858414,-500.0,0.00017131,2]
[338654378,1726849858426,-500.0,0.00017131,2]
[338654379,1726849858435,-500.0,0.00017131,2]
[338654380,1726849858444,-500.0,0.00017131,2]
[338654381,1726849858454,-500.0,0.00017131,2]
[338654382,1726849858463,-500.0,0.00017131,2]
[338654383,1726849858474,-500.0,0.00017131,2]
[338654384,1726849858483,-500.0,0.00017131,2]
[338654385,1726849858494,-500.0,0.00017131,2]
[338654386,1726849858504,-500.0,0.00017131,2]
[338654387,1726849858514,-152.663539,0.00017131,2]
[338654388,1726849858526,-152.663539,0.00017131,2]
[338654389,1726849858538,-151.0,0.00017137,2]
[338654390,1726849858549,-183.339056,0.00017196,2]
[338654391,1726849858560,-213.784073,0.00017196,2]
[338654392,1726849858569,-275.15831,0.00017196,2]
[338654393,1726849858579,-314.891116,0.00017196,2]
[338654394,1726849858589,-359.237185,0.00017196,2]
[338654395,1726849858599,-159.026158,0.00017196,2]
[338654396,1726849858610,-151.330472,0.000172,2]
[338654397,1726849858620,-151.0,0.00017204,2]
[338654398,1726849858629,-285.272027,0.00017204,2]
[338654399,1726849858639,-446.733164,0.00017204,2]
[338654400,1726849858648,-446.733164,0.00017204,2]
[338654401,1726849858658,-359.237184,0.00017225,2]
[338654402,1726849858668,-473.917274,0.00017225,2]
[338654403,1726849858678,-682.23,0.00017243,2]
[338654404,1726849858687,-500.0,0.00017243,2]
[338654405,1726849858697,-574.66,0.00017243,2]
[338654406,1726849858706,-54541.23,0.00017243,2]
[338654407,1726849858716,-2235.03,0.00017244,2]
[338654408,1726849858725,-780.94,0.00017244,2]
[338654409,1726849858735,-500.0,0.00017244,2]
[338654410,1726849858746,-500.0,0.00017244,2]
[338654411,1726849858756,-578.85765561,0.00017244,2]
[338654412,1726849858766,-151.0,0.00017255,2]
[338654413,1726849858777,-190.31030363,0.00017259,2]
[338654414,1726849858787,-783.08044852,0.00017259,2]
[338654415,1726849858797,-3701.97117067,0.00017266,2]
[338654416,1726849858807,-500.0,0.00017333,2]
[338654417,1726849858818,-500.0,0.00017333,2]
[338654418,1726849858827,-1254.49,0.00017333,2]
[338654419,1726849858839,-500.0,0.00017333,2]
[338654420,1726849858850,-500.0,0.00017334,2]
[338654421,1726849858860,-500.0,0.00017334,2]
[338654422,1726849858870,-2013.89,0.00017335,2]
[338654423,1726849858880,-500.0,0.00017335,2]
[338654424,1726849858891,-388.25925132,0.00017335,2]
[338654425,1726849858901,-500.0,0.00017335,2]
[338654426,1726849858910,-500.0,0.00017335,2]
[338654427,1726849858921,-669.37,0.00017335,2]
[338654428,1726849858931,-711.78,0.00017335,2]
[338654429,1726849858940,-224.36,0.00017335,2]
[338654430,1726849858949,-500.0,0.00017335,2]
[338654431,1726849858958,-1048.35,0.00017335,2]
[338654432,1726849858967,-500.0,0.00017335,2]
[338654433,1726849858976,-707.82,0.00017335,2]
[338654434,1726849858986,-713.32,0.00017335,2]
[338654435,1726849858995,-512.42,0.00017335,2]
[338654436,1726849859005,-1533.92,0.00017335,2]
[338654437,1726849859014,-835.97,0.00017335,2]
[338654438,1726849859024,-719.41,0.00017335,2]
[338654439,1726849859033,-592.83,0.00017335,2]
[338654440,1726849859043,-500.0,0.00017335,2]
[338654441,1726849859052,-500.0,0.00017335,2]
[338654442,1726849859061,-526.55,0.00017335,2]
[338654443,1726849859071,-500.0,0.00017335,2]
[338654444,1726849859081,-500.0,0.00017335,2]
[338654445,1726849859091,-639.15,0.00017335,2]
[338654446,1726849859101,-500.0,0.00017335,2]
[338654447,1726849859110,-500.0,0.00017335,2]
[338654448,1726849859119,-500.0,0.00017335,2]
[338654449,1726849859129,-500.0,0.00017335,2]
[338654450,1726849859139,-500.0,0.00017335,2]
[338654451,1726849859148,-500.0,0.00017335,2]
[338654452,1726849859158,-181.816389,0.00017336,2]
[338654453,1726849859167,-630.629013,0.00017341,2]
[338654454,1726849859177,-818.18412294,0.00017342,2]
[338654455,1726849859187,-1000.0,0.00017342,2]
[338654456,1726849859196,-1000.0,0.00017342,2]
[338654457,1726849859205,-1000.0,0.00017342,2]
[338654458,1726849859214,-500.0,0.00017344,2]
[338654459,1726849859224,-599.25,0.00017345,2]
[338654460,1726849859233,-921.45,0.00017345,2]
[338654461,1726849859242,-511.27,0.00017345,2]
[338654462,1726849859252,-500.0,0.00017345,2]
[338654463,1726849859261,-500.0,0.00017345,2]
[338654464,1726849859270,-730.95,0.00017345,2]
[338654465,1726849859281,-200.0,0.00017345,2]
[338654466,1726849859292,-528.81,0.00017345,2]
[338654467,1726849859302,-500.0,0.00017345,2]
[338654468,1726849859312,-500.0,0.00017345,2]
[338654469,1726849859438,-626.82,0.00017345,2]
[338654470,1726849859448,-496.33150023,0.00017345,2]
[338654471,1726849859457,-500.0,0.00017345,2]
[338654472,1726849859467,-500.0,0.00017345,2]
[338654473,1726849859476,-1000.17,0.00017345,2]
[338654474,1726849859486,-616.53,0.00017345,2]
[338654475,1726849859495,-544.65,0.00017345,2]
[338654476,1726849859504,-500.0,0.00017345,2]
[338654477,1726849859514,-500.0,0.00017345,2]
[338654478,1726849859524,-500.0,0.00017345,2]
[338654479,1726849859534,-500.0,0.00017345,2]
[338654480,1726849859543,-746.45,0.00017345,2]
[338654481,1726849859553,-500.0,0.00017345,2]
[338654482,1726849859562,-500.0,0.00017345,2]
[338654483,1726849859571,-500.0,0.00017345,2]
[338654484,1726849859581,-510.27,0.00017345,2]
[338654485,1726849859590,-500.0,0.00017345,2]
[338654486,1726849859599,-500.0,0.00017345,2]
[338654487,1726849859608,-500.0,0.00017345,2]
[338654488,1726849859618,-500.0,0.00017345,2]
[338654489,1726849859628,-500.0,0.00017345,2]
[338654490,1726849859637,-500.0,0.00017345,2]
[338654491,1726849859648,-500.0,0.00017345,2]
[338654492,1726849859658,-152.663539,0.00017345,2]
[338654493,1726849859667,-152.66354272,0.00017345,2]
[338654494,1726849859677,-500.0,0.00017345,2]
[338654495,1726849859687,-805.83,0.00017345,2]
[338654496,1726849859696,-230.612043,0.00017345,2]
[338654497,1726849859705,-230.612046,0.00017345,2]
[338654498,1726849859716,-500.0,0.00017345,2]
[338654499,1726849859725,-681.44,0.00017345,2]
[338654500,1726849859735,-500.0,0.00017345,2]
[338654501,1726849859745,-799.02,0.00017345,2]
[338654502,1726849859754,-500.0,0.00017345,2]
[338654503,1726849859764,-500.0,0.00017345,2]
[338654504,1726849859773,-594.08,0.00017345,2]
[338654505,1726849859782,-500.0,0.00017345,2]
[338654506,1726849859791,-516.67,0.00017345,2]
[338654507,1726849859800,-500.0,0.00017345,2]
[338654508,1726849859809,-500.0,0.00017345,2]
[338654509,1726849859819,-500.0,0.00017345,2]
[338654510,1726849859828,-290.42028302,0.00017345,2]
[338654511,1726849859837,-608.01,0.00017345,2]
[338654512,1726849859846,-500.0,0.00017345,2]
[338654513,1726849859856,-510.88,0.00017345,2]
[338654514,1726849859865,-500.0,0.00017345,2]
[338654515,1726849859875,-770.65,0.00017345,2]
[338654516,1726849859884,-761.01,0.00017345,2]
[338654517,1726849859893,-500.0,0.00017345,2]
[338654518,1726849859903,-500.0,0.00017345,2]
[338654519,1726849859911,-577.53,0.00017345,2]
[338654520,1726849859921,-500.0,0.00017345,2]
[338654521,1726849859931,-500.0,0.00017345,2]
[338654522,1726849859940,-151.0,0.00017346,2]
[338654523,1726849859949,-500.0,0.00017346,2]
[338654524,1726849859959,-652.36,0.00017346,2]
[338654525,1726849859969,-859.59,0.00017346,2]
[338654526,1726849859979,-500.0,0.00017346,2]
[338654527,1726849859991,-329.49509007,0.00017346,2]
[338654528,1726849860001,-1417.57,0.00017346,2]
[338654529,1726849860011,-500.0,0.00017346,2]
[338654530,1726849860020,-1130.89,0.00017346,2]
[338654531,1726849860030,-500.0,0.00017346,2]
[338654532,1726849860039,-287.28,0.00017346,2]
[338654533,1726849860049,-500.0,0.00017346,2]
[338654534,1726849860058,-151.0,0.00017346,2]
[338654535,1726849860067,-446.733164,0.00017346,2]
[338654536,1726849860077,-446.733164,0.00017346,2]
[338654537,1726849860086,-151.0,0.00017372,2]
[338654538,1726849860095,-500.0,0.00017405,2]
[338654539,1726849860106,-749.69,0.00017405,2]
[338654540,1726849860118,-500.0,0.00017405,2]
[338654541,1726849860128,-823.24,0.00017405,2]
[338654542,1726849860139,-1124.2,0.00017405,2]
[338654543,1726849860148,-2812.8,0.00017405,2]
[338654544,1726849860158,-1154.45,0.00017405,2]
[338654545,1726849860168,-500.0,0.00017405,2]
[338654546,1726849860178,-1119.27,0.00017405,2]
[338654547,1726849860188,-711.33,0.00017405,2]
[338654548,1726849860201,-1143.54,0.00017405,2]
[338654549,1726849860210,-860.87,0.00017405,2]
[338654550,1726849860220,-500.0,0.00017405,2]
[338654551,1726849860229,-500.0,0.00017405,2]
[338654552,1726849860239,-500.0,0.00017405,2]
[338654553,1726849860249,-638.48,0.00017405,2]
[338654554,1726849860259,-500.0,0.00017405,2]
[338654555,1726849860268,-500.0,0.00017405,2]
[338654556,1726849860277,-500.0,0.00017405,2]
[338654557,1726849860287,-633.57,0.00017405,2]
[338654558,1726849860296,-718.59,0.00017405,2]
[338654559,1726849860305,-977.74,0.00017405,2]
[338654560,1726849860314,-500.0,0.00017405,2]
[338654561,1726849860324,-500.0,0.00017405,2]
[338654562,1726849860334,-500.0,0.00017405,2]
[338654563,1726849860345,-589.91,0.00017405,2]
[338654564,1726849860354,-500.0,0.00017405,2]
[338654565,1726849860363,-500.0,0.00017405,2]
[338654566,1726849860372,-615.12,0.00017405,2]
[338654567,1726849860382,-500.0,0.00017405,2]
[338654568,1726849860392,-500.0,0.00017405,2]
[338654569,1726849860404,-673.52,0.00017405,2]
[338654570,1726849860414,-500.0,0.00017405,2]
[338654571,1726849860425,-500.0,0.00017405,2]
[338654572,1726849860436,-500.0,0.00017405,2]
[338654573,1726849860445,-500.0,0.00017405,2]
[338654574,1726849860454,-476.90888592,0.00017405,2]
[338654575,1726849860464,-495.86783002,0.00017405,2]
[338654576,1726849860474,-556.23221131,0.00017405,2]
[338654577,1726849860492,-500.0,0.00017405,2]
[338654578,1726849860507,-619.38362957,0.00017405,2]
[338654579,1726849860520,-500.0,0.00017405,2]
[338654580,1726849860536,-176.991934,0.00017406,2]
[338654581,1726849860552,-265.043597,0.00017406,2]
[338654582,1726849860566,-353.983869,0.00017406,2]
[338654583,1726849860582,-530.087193,0.00017406,2]
[338654584,1726849860597,-580.660763,0.00017406,2]
[338654585,1726849860611,-537.944563,0.00017406,2]
[338654586,1726849860627,-550.017169,0.00017406,2]
[338654587,1726849860643,-498.144768,0.00017406,2]
[338654588,1726849860658,-229.120789,0.00017406,2]
[338654589,1726849860670,-443.777647,0.00017406,2]
[338654590,1726849860683,-213.784073,0.00017406,2]
[338654591,1726849860697,-275.15831,0.00017406,2]
[338654592,1726849860711,-314.891116,0.00017406,2]
[338654593,1726849860726,-359.237185,0.00017406,2]
[338654594,1726849860740,-159.026158,0.00017406,2]
[338654595,1726849860751,-359.237184,0.00017435,2]
[338654596,1726849860762,-473.917274,0.00017435,2]
[338654597,1726849860776,-151.0,0.0001749,2]
[338654598,1726849860791,-682.23,0.00017517,2]
[338654599,1726849860803,-500.0,0.00017517,2]
[338654600,1726849860817,-574.66,0.00017517,2]
[338654601,1726849860833,-54541.23,0.00017517,2]
[338654602,1726849860848,-2235.03,0.00017518,2]
[338654603,1726849860860,-780.94,0.00017518,2]
[338654604,1726849860872,-500.0,0.00017518,2]
[338654605,1726849860885,-500.0,0.00017518,2]
[338654606,1726849860899,-153.0,0.00017534,2]
[338654607,1726849860912,-153.0,0.00017534,2]
[338654608,1726849860932,-153.0,0.00017534,2]
[338654609,1726849860945,-153.0,0.00017534,2]
[338654610,1726849860957,-153.0,0.00017534,2]
[338654611,1726849860969,-208.7923626,0.00017534,2]
[338654612,1726849860981,-306.0,0.00017534,2]
[338654613,1726849860993,-151.0,0.00017607,2]
[338654614,1726849861005,-500.0,0.00017607,2]
[338654615,1726849861017,-500.0,0.00017607,2]
[338654616,1726849861029,-1254.49,0.00017607,2]
[338654617,1726849861042,-500.0,0.00017607,2]
[338654618,1726849861055,-500.0,0.00017608,2]
[338654619,1726849861067,-500.0,0.00017608,2]
[338654620,1726849861079,-2013.89,0.00017609,2]
[338654621,1726849861091,-500.0,0.00017609,2]
[338654622,1726849861103,-500.0,0.00017609,2]
[338654623,1726849861116,-500.0,0.00017609,2]
[338654624,1726849861131,-151.0,0.00017609,2]
[338654625,1726849861144,-669.37,0.00017609,2]
[338654626,1726849861157,-711.78,0.00017609,2]
[338654627,1726849861172,-500.0,0.00017609,2]
[338654628,1726849861184,-446.733164,0.00017609,2]
[338654629,1726849861196,-446.733166,0.00017609,2]
[338654630,1726849861209,-1048.35,0.00017609,2]
[338654631,1726849861222,-172.37,0.00017609,2]
[338654632,1726849861235,-707.82,0.00017609,2]
[338654633,1726849861249,-713.32,0.00017609,2]
[338654634,1726849861262,-512.42,0.00017609,2]
[338654635,1726849861275,-1533.92,0.00017609,2]
[338654636,1726849861287,-835.97,0.00017609,2]
[338654637,1726849861299,-719.41,0.00017609,2]
[338654638,1726849861312,-592.83,0.00017609,2]
[338654639,1726849861326,-500.0,0.00017609,2]
[338654640,1726849861339,-500.0,0.00017609,2]
[338654641,1726849861353,-526.55,0.00017609,2]
[338654642,1726849861367,-500.0,0.00017609,2]
[338654643,1726849861379,-500.0,0.00017609,2]
[338654644,1726849861394,-500.0,0.00017609,2]
[338654645,1726849861408,-500.0,0.00017609,2]
[338654646,1726849861421,-500.0,0.00017609,2]
[338654647,1726849861435,-257.24,0.00017609,2]
[338654648,1726849861447,-500.0,0.00017609,2]
[338654649,1726849861459,-500.0,0.00017609,2]
[338654650,1726849861473,-176.991934,0.00017616,2]
[338654651,1726849861485,-265.043597,0.00017616,2]
[338654652,1726849861497,-353.983869,0.00017616,2]
[338654653,1726849861510,-530.087193,0.00017616,2]
[338654654,1726849861523,-580.660763,0.00017616,2]
[338654655,1726849861533,-537.944563,0.00017616,2]
[338654656,1726849861543,-550.017169,0.00017616,2]
[338654657,1726849861554,-498.144768,0.00017616,2]
[338654658,1726849861564,-229.120789,0.00017616,2]
[338654659,1726849861573,-443.777647,0.00017616,2]
[338654660,1726849861582,-183.339056,0.00017616,2]
[338654661,1726849861592,-213.784073,0.00017616,2]
[338654662,1726849861601,-275.15831,0.00017616,2]
[338654663,1726849861612,-314.891116,0.00017616,2]
[338654664,1726849861622,-359.237185,0.00017616,2]
[338654665,1726849861633,-159.026158,0.00017616,2]
[338654666,1726849861644,-221.888824,0.00017616,2]
[338654667,1726849861654,-181.816389,0.00017616,2]
[338654668,1726849861664,-282.754287,0.00017616,2]
[338654669,1726849861677,-500.0,0.00017618,2]
[338654670,1726849861689,-599.25,0.00017619,2]
[338654671,1726849861699,-921.45,0.00017619,2]
[338654672,1726849861710,-511.27,0.00017619,2]
[338654673,1726849861721,-500.0,0.00017619,2]
[338654674,1726849861730,-500.0,0.00017619,2]
[338654675,1726849861739,-730.95,0.00017619,2]
[338654676,1726849861749,-200.0,0.00017619,2]
[338654677,1726849861758,-528.81,0.00017619,2]
[338654678,1726849861768,-500.0,0.00017619,2]
[338654679,1726849861777,-500.0,0.00017619,2]
[338654680,1726849861788,-626.82,0.00017619,2]
[338654681,1726849861798,-500.0,0.00017619,2]
[338654682,1726849861810,-500.0,0.00017619,2]
[338654683,1726849861822,-1000.17,0.00017619,2]
[338654684,1726849861834,-616.53,0.00017619,2]
[338654685,1726849861846,-544.65,0.00017619,2]
[338654686,1726849862097,-500.0,0.00017619,2]
[338654687,1726849862119,-500.0,0.00017619,2]
[338654688,1726849862134,-500.0,0.00017619,2]
[338654689,1726849862145,-500.0,0.00017619,2]
[338654690,1726849862156,-746.45,0.00017619,2]
[338654691,1726849862166,-500.0,0.00017619,2]
[338654692,1726849862177,-500.0,0.00017619,2]
[338654693,1726849862186,-500.0,0.00017619,2]
[338654694,1726849862196,-510.27,0.00017619,2]
[338654695,1726849862208,-500.0,0.00017619,2]
[338654696,1726849862217,-500.0,0.00017619,2]
[338654697,1726849862226,-500.0,0.00017619,2]
[338654698,1726849862237,-500.0,0.00017619,2]
[338654699,1726849862247,-500.0,0.00017619,2]
[338654700,1726849862258,-500.03222871,0.00017619,2]
[338654701,1726849862268,-500.0,0.00017619,2]
[338654702,1726849862277,-500.0,0.00017619,2]
[338654703,1726849862287,-805.83,0.00017619,2]
[338654704,1726849862297,-500.0,0.00017619,2]
[338654705,1726849862306,-681.44,0.00017619,2]
[338654706,1726849862315,-500.0,0.00017619,2]
[338654707,1726849862325,-799.02,0.00017619,2]
[338654708,1726849862334,-500.0,0.00017619,2]
[338654709,1726849862343,-500.0,0.00017619,2]
[338654710,1726849862353,-594.08,0.00017619,2]
[338654711,1726849862362,-500.0,0.00017619,2]
[338654712,1726849862371,-516.67,0.00017619,2]
[338654713,1726849862380,-500.0,0.00017619,2]
[338654714,1726849862392,-500.0,0.00017619,2]
[338654715,1726849862406,-500.0,0.00017619,2]